bitfinex-derivatives/quotes_ETHF0:USTF0_20260207
["timestamp","ask_amount","ask_price","bid_price","bid_amount"]
[1770487514333,3.86733329,2066.7,2065.2,3.85945086]
[1770487514938,3.86733329,2066.3,2064.6,3.85945086]
[1770487515335,3.86733329,2066.3,2064.6,3.86425052]
[1770487516534,3.86733329,2066.3,2064.8,3.85945086]
[1770487516734,3.86733329,2066.3,2065.0,3.85945086]
[1770487518332,3.86733329,2066.3,2065.2,3.85945086]
[1770487520339,10.63780187,2067.1,2065.2,3.85945086]
[1770487520340,14.52022367,2067.1,2065.4,3.85945086]
[1770487520644,3.86733329,2067.5,2066.3,3.85945086]
[1770487520941,3.86733329,2067.5,2066.5,3.85945086]
[1770487521143,3.86733329,2067.7,2066.5,4.26950143]
[1770487521338,3.87155402,2067.7,2066.6,3.85945086]
[1770487521735,0.00422073,2067.7,2066.6,3.85945086]
[1770487521940,3.86733329,2067.6,2066.8,3.85945086]
[1770487522740,3.86733329,2067.6,2066.6,3.85945086]
[1770487523437,3.87155402,2067.7,2066.6,3.85945086]
[1770487525640,0.00422073,2067.7,2066.6,3.85945086]
[1770487527646,3.87155402,2067.7,2066.6,3.85945086]
[1770487527840,3.87155402,2067.7,2066.6,2.88497103]
[1770487530542,0.00422073,2067.7,2066.6,2.88497103]
[1770487530948,3.87155402,2067.7,2066.6,2.88497103]
[1770487532238,0.00422073,2067.7,2066.6,2.88497103]
[1770487535949,5.54017867,2068.9,2066.8,0.00355377]
[1770487536139,0.68317867,2068.8,2066.9,0.00355377]
[1770487536546,0.68317867,2068.8,2067.0,0.06419134]
[1770487536947,0.68899254,2068.8,2067.0,0.06419134]
[1770487537951,0.68899254,2068.8,2066.5,6.38525319]
[1770487537952,0.68317867,2068.7,2066.5,6.38525319]
[1770487538244,0.68317867,2068.7,2066.6,0.67022748]
[1770487539044,5.54017867,2068.6,2066.5,0.0050376]
[1770487539249,0.68317867,2068.4,2066.6,0.67022748]
[1770487539648,0.68317867,2068.3,2066.6,0.67022748]
[1770487540743,8.70365607,2068.9,2066.6,0.67022748]
[1770487540744,0.18519251,2070.2,2067.8,0.67022748]
[1770487540947,0.68317867,2070.1,2068.5,0.67022748]
[1770487541549,0.68317867,2070.1,2068.6,0.67022748]
[1770487541750,0.68938496,2070.1,2068.6,0.67450262]
[1770487544147,0.68938496,2070.1,2068.7,0.67022748]
[1770487549452,0.68938496,2070.1,2068.6,0.00427514]
[1770487549749,0.68938496,2070.1,2068.6,0.67450262]
[1770487551560,4.857,2071.1,2068.6,0.67450262]
[1770487551561,0.92468867,2072.0,2069.6,0.67022748]
[1770487551750,0.68317867,2071.6,2069.6,0.67022748]
[1770487552355,0.68873367,2071.6,2069.6,0.67022748]
[1770487553760,0.68873367,2071.6,2069.7,0.67022748]
[1770487554065,0.68873367,2071.6,2069.8,0.67022748]
[1770487562461,0.68317867,2071.4,2069.8,0.67022748]
[1770487562764,0.68317867,2070.8,2068.7,0.67022748]
[1770487563865,0.68317867,2070.8,2068.8,0.67022748]
[1770487565365,0.68317867,2070.6,2068.8,0.67022748]
[1770487566158,0.68317867,2070.6,2068.6,0.00427514]
[1770487566364,0.68317867,2070.6,2068.6,0.54205753]
[1770487567465,0.58262466,2070.4,2068.6,0.54205753]
[1770487567662,0.58262466,2070.3,2068.6,0.54205753]
[1770487567863,0.58262466,2070.2,2068.6,0.54205753]
[1770487568967,0.82433466,2070.2,2068.6,0.00427514]
[1770487569164,0.58262466,2070.0,2068.6,0.00427514]
[1770487569365,0.5869062,2070.0,2068.6,0.00427514]
[1770487569563,0.8286362,2070.0,2068.6,0.00427514]
[1770487569766,0.58262466,2069.9,2068.6,0.00427514]
[1770487570368,0.58262466,2069.8,2067.9,0.53778239]
[1770487570664,0.58262466,2069.7,2067.9,0.53778239]
[1770487570869,1.98500368,2069.7,2067.9,0.53778239]
[1770487571167,0.58262466,2069.6,2067.9,0.53778239]
[1770487571365,0.58262466,2069.6,2067.9,0.54194948]
[1770487571563,0.5846847,2069.4,2067.9,0.00416709]
[1770487571961,0.5846847,2069.4,2067.9,0.58013189]
[1770487572169,0.5846847,2069.4,2067.9,0.00416709]
[1770487572368,0.5846847,2069.4,2068.0,0.5759648]
[1770487573664,0.5846847,2069.2,2067.9,0.38777875]
[1770487573981,1.40237902,2069.3,2067.0,0.5759648]
[1770487573982,0.5846847,2068.8,2067.0,0.5759648]
[1770487574271,0.5846847,2068.8,2067.1,0.5759648]
[1770487574860,0.5846847,2068.8,2067.1,0.58078972]
[1770487575065,0.5846847,2068.8,2067.2,0.5759648]
[1770487577969,0.5846847,2068.7,2067.2,0.5759648]
[1770487578472,0.5846847,2068.7,2067.1,0.00482492]
[1770487578769,0.5846847,2068.7,2067.2,0.5759648]
[1770487581175,0.5846847,2068.4,2067.1,0.00482492]
[1770487581377,0.58880522,2068.4,2067.1,0.58078972]
[1770487592781,0.58880522,2068.4,2066.3,0.3435556]
[1770487592782,0.5846847,2068.2,2066.3,0.3435556]
[1770487593583,0.5846847,2068.2,2066.4,0.3435556]
[1770487593781,0.5846847,2068.2,2066.4,0.34783122]
[1770487597084,6.83926771,2068.4,2067.6,1.40237902]
[1770487597287,1.50100245,2070.6,2066.4,0.00427562]
[1770487597288,12.86768716,2070.7,2068.3,7.11236713]
[1770487597479,0.58585627,2070.6,2068.9,2.829513]
[1770487597678,0.58585627,2070.6,2068.8,7.0737825]
[1770487597880,0.58585627,2070.6,2068.9,2.829513]
[1770487598083,0.58585627,2070.6,2068.9,0.00350747]
[1770487598084,0.59028602,2070.6,2068.9,0.00350747]
[1770487598280,0.59028602,2070.6,2068.9,2.83302047]
[1770487599190,0.59028602,2070.6,2068.9,4.60234774]
[1770487599392,0.59028602,2070.6,2068.9,0.00350747]
[1770487601393,0.59028602,2070.6,2069.4,1.40237902]
[1770487601603,16.89099651,2072.1,2068.9,0.00350747]
[1770487601604,0.58602273,2071.9,2070.1,7.0737825]
[1770487601900,0.58602273,2071.9,2070.0,4.23189202]
[1770487602302,0.58602273,2071.9,2070.1,0.01246162]
[1770487602496,0.59159954,2071.9,2070.2,0.01246162]
[1770487607005,0.59159954,2071.9,2070.1,0.00799317]
[1770487608703,0.59159954,2071.9,2070.0,1.40237902]
[1770487608904,0.57915521,2071.6,2069.6,0.01340211]
[1770487609205,0.57915521,2071.6,2069.8,0.01340211]
[1770487612406,4.839,2071.1,2069.8,0.01340211]
[1770487612610,0.58567223,2071.0,2069.8,0.01340211]
[1770487615300,5.42467223,2071.0,2069.5,0.00291265]
[1770487615506,5.42339994,2070.9,2069.5,0.00291265]
[1770487615702,0.58439994,2070.5,2069.0,0.00291265]
[1770487615906,0.58439994,2070.5,2069.1,0.00291265]
[1770487616213,9.15314,2071.6,2069.1,0.00291265]
[1770487616214,0.58934681,2072.6,2070.4,1.40237902]
[1770487616401,0.59492362,2071.9,2070.4,0.00601037]
[1770487616600,0.58934681,2071.8,2070.4,0.00601037]
[1770487617314,0.58934681,2071.6,2070.4,0.00601037]
[1770487618411,0.58934681,2071.6,2070.4,0.06677713]
[1770487618806,0.00557681,2071.9,2070.4,0.06677713]
[1770487619013,0.57405828,2071.9,2070.7,0.06076676]
[1770487619204,0.57405828,2071.9,2070.4,0.06677713]
[1770487620312,0.00557681,2071.9,2070.5,0.06076676]
[1770487620517,0.57405828,2071.9,2070.5,0.06076676]
[1770487622609,0.57405828,2071.9,2070.4,0.00601037]
[1770487623114,0.57405828,2071.9,2070.4,0.03081117]
[1770487624715,0.57405828,2071.9,2070.4,0.00601037]
[1770487625116,0.57053094,2071.8,2070.4,0.00601037]
[1770487625312,0.56848147,2071.5,2069.7,0.03666102]
[1770487626416,0.56848147,2071.5,2069.9,0.03955845]
[1770487626720,0.56848147,2071.5,2069.8,2.78651261]
[1770487626721,0.56848147,2071.5,2070.0,0.03955845]
[1770487628520,0.56848147,2071.5,2070.1,0.0329752]
[1770487630221,0.56848147,2071.5,2070.1,2.81948781]
[1770487630423,0.56848147,2071.5,2070.2,0.03223219]
[1770487631824,0.56848147,2071.5,2069.9,3.3246331]
[1770487632018,0.56848147,2071.5,2070.0,0.53812049]
[1770487632421,4.839,2071.4,2070.0,0.53812049]
[1770487632628,0.56041327,2071.3,2070.0,0.53812049]
[1770487632919,0.00557681,2071.9,2070.6,0.53812049]
[1770487633120,0.56041327,2071.8,2070.8,0.53812049]
[1770487633314,0.56041327,2071.8,2070.6,0.53812049]
[1770487636426,0.56041327,2071.7,2070.5,0.53812049]
[1770487637420,0.56041327,2071.7,2070.2,2.78651261]
[1770487637622,0.56041327,2071.5,2070.1,0.53812049]
[1770487638328,0.56041327,2071.5,2070.2,0.53812049]
[1770487639519,0.56041327,2071.4,2070.0,2.78651261]
[1770487639723,0.56041327,2071.4,2070.1,0.53812049]
[1770487640324,0.56041327,2071.4,2070.2,0.53812049]
[1770487640519,0.56041327,2071.4,2070.4,0.53812049]
[1770487640721,0.56041327,2071.4,2070.5,0.53812049]
[1770487642527,0.56041327,2071.4,2070.3,2.78651261]
[1770487642729,0.56041327,2071.4,2070.3,0.53812049]
[1770487644039,0.56041327,2071.4,2070.1,0.53812049]
[1770487645334,0.56041327,2071.4,2070.2,0.53812049]
[1770487645530,0.56041327,2071.4,2070.0,2.78651261]
[1770487645732,0.56041327,2071.4,2070.0,3.3246331]
[1770487645928,0.56041327,2071.4,2070.1,0.53812049]
[1770487646133,0.56041327,2071.4,2070.2,0.53812049]
[1770487647534,0.56041327,2071.2,2070.2,0.53812049]
[1770487650141,0.00557681,2071.9,2070.7,0.0209193]
[1770487650344,0.57513698,2071.8,2070.7,0.0209193]
[1770487650633,0.57513698,2071.8,2070.5,0.02000268]
[1770487651036,5.41413698,2071.5,2070.4,2.83890372]
[1770487651243,0.57513698,2071.3,2070.1,2.8589064]
[1770487651442,0.57513698,2071.3,2070.2,0.02000268]
[1770487651637,0.57513698,2071.3,2070.1,2.8589064]
[1770487651844,0.57513698,2071.1,2070.2,0.02000268]
[1770487652838,7.33496359,2071.6,2070.2,0.02000268]
[1770487653143,0.57973054,2071.9,2070.7,0.02196917]
[1770487653443,0.57973054,2071.9,2070.8,0.02196917]
[1770487654340,0.57973054,2071.9,2070.9,0.01670105]
[1770487654545,0.57973054,2071.9,2071.0,0.01670105]
[1770487654838,0.57973054,2071.9,2071.1,0.01670105]
[1770487655638,0.5823646,2071.9,2071.1,0.01670105]
[1770487656042,0.5823646,2071.9,2070.9,7.47746524]
[1770487656241,0.5823646,2071.9,2070.9,0.01632812]
[1770487656746,0.5823646,2071.9,2071.0,0.01737069]
[1770487657642,0.5823646,2071.9,2071.1,0.01737069]
[1770487658146,0.24142,2072.7,2071.1,0.01737069]
[1770487658147,0.57626651,2072.4,2071.1,0.01737069]
[1770487658849,0.57626651,2072.4,2071.0,0.01631678]
[1770487659248,0.58156492,2072.4,2071.0,0.01631678]
[1770487661140,7.67497851,2072.4,2071.0,0.01631678]
[1770487661346,0.57697704,2072.3,2070.7,2.8327669]
[1770487661546,0.57697704,2072.2,2070.7,0.01594962]
[1770487663450,7.08418134,2072.4,2070.9,1.40022659]
[1770487663750,0.59025026,2072.4,2071.3,2.8327669]
[1770487664050,0.59025026,2072.4,2071.3,2.83773841]
[1770487664253,0.59025026,2072.4,2071.3,0.00497151]
[1770487664550,0.59025026,2072.4,2071.4,0.02642285]
[1770487665947,0.57703883,2072.4,2071.4,0.02642285]
[1770487667347,0.00529841,2072.4,2071.4,0.02642285]
[1770487669052,0.5771037,2072.4,2071.4,0.02642285]
[1770487670244,0.5771037,2072.4,2071.3,0.00497151]
[1770487670648,0.5771037,2072.4,2071.3,0.03779192]
[1770487672151,0.00529841,2072.4,2071.3,2.83773841]
[1770487672357,0.56854164,2072.5,2071.4,0.03282041]
[1770487673356,0.57344499,2072.5,2071.4,0.03282041]
[1770487676854,0.57344499,2072.5,2071.0,2.8327669]
[1770487676855,0.56836914,2072.0,2070.3,2.8327669]
[1770487677056,0.56836914,2071.9,2070.0,2.8327669]
[1770487677256,0.56836914,2071.9,2070.1,0.03316541]
[1770487677458,0.56836914,2071.9,2070.0,2.8327669]
[1770487677751,0.56836914,2071.9,2070.1,0.03316541]
[1770487677951,0.56836914,2071.8,2070.1,0.03316541]
[1770487678861,7.74521322,2071.6,2070.0,0.00387037]
[1770487679156,0.56412359,2071.5,2070.0,0.00387037]
[1770487681165,5.40312359,2071.5,2070.0,0.00387037]
[1770487681364,0.56501996,2071.4,2070.0,0.00387037]
[1770487681560,0.56501996,2071.4,2069.6,4.07005724]
[1770487681561,0.56501996,2070.9,2069.6,1.23729034]
[1770487681760,0.56501996,2070.9,2069.1,0.03986379]
[1770487682161,0.56501996,2070.8,2069.1,0.03986379]
[1770487682663,0.56874908,2070.8,2069.1,0.0436181]
[1770487683164,0.56412359,2070.6,2069.1,0.00375431]
[1770487684262,0.56412359,2070.6,2069.1,0.05586443]
[1770487684967,0.56412359,2070.6,2069.1,0.00375431]
[1770487685765,0.56900055,2070.4,2068.1,0.05141152]
[1770487685966,0.56900055,2070.2,2068.1,0.05141152]
[1770487686168,0.24173,2070.1,2068.0,2.8327669]
[1770487686469,0.56900055,2069.9,2068.1,0.05661421]
[1770487686664,0.56900055,2069.9,2068.1,0.06265713]
[1770487687167,0.56900055,2069.7,2068.1,0.00604292]
[1770487687361,0.56900055,2069.7,2068.1,0.06265713]
[1770487687562,0.56900055,2069.6,2068.1,0.00604292]
[1770487688265,0.56900055,2069.4,2067.1,0.05827116]
[1770487688463,14.53231622,2070.0,2066.5,7.05925259]
[1770487688464,0.56900055,2069.1,2066.5,0.06431408]
[1770487688766,0.56900055,2069.1,2066.6,0.06431408]
[1770487689467,0.57295693,2069.1,2066.6,0.06864785]
[1770487691569,0.57295693,2069.1,2067.0,0.09294588]
[1770487691865,0.58062362,2068.8,2067.0,0.09294588]
[1770487692067,0.58062362,2068.8,2066.8,0.09294588]
[1770487694471,0.58062362,2068.8,2066.9,0.08614865]
[1770487696966,0.58062362,2068.8,2067.3,0.14238641]
[1770487707677,0.58458,2069.1,2067.7,0.11952985]
[1770487708073,0.58458,2069.1,2067.9,0.11952985]
[1770487708377,0.58458,2069.1,2068.0,0.11952985]
[1770487709381,0.58458,2069.1,2068.1,0.12077372]
[1770487709683,0.58458,2069.1,2068.1,0.12481198]
[1770487711080,0.58458,2069.1,2068.1,0.00403826]
[1770487713382,0.58458,2069.1,2067.8,2.8327669]
[1770487713583,0.58458,2069.1,2067.7,11.68193237]
[1770487713883,0.58458,2069.1,2067.9,0.13787818]
[1770487714276,0.58458,2069.1,2067.9,0.14230397]
[1770487714582,0.58062362,2068.9,2067.4,2.8327669]
[1770487715480,0.58062362,2068.9,2067.5,2.8327669]
[1770487715785,0.58062362,2068.9,2067.5,2.97298102]
[1770487716591,0.58062362,2068.9,2067.5,2.8327669]
[1770487717782,5.4042507,2068.8,2067.5,2.8327669]
[1770487717986,0.5652507,2068.7,2067.4,0.00400153]
[1770487720187,0.5652507,2068.7,2067.4,2.83676843]
[1770487720391,0.5652507,2068.7,2067.7,0.14138204]
[1770487720690,0.5652507,2068.7,2067.8,0.14143899]
[1770487720890,0.5652507,2068.7,2067.9,0.14143899]
[1770487721186,0.5652507,2068.7,2067.7,2.97420589]
[1770487721388,0.5652507,2068.7,2067.8,2.8327669]
[1770487722887,0.5652507,2068.7,2067.7,8.88353677]
[1770487722888,0.5652507,2068.7,2067.4,0.00400153]
[1770487725597,0.5652507,2068.6,2067.4,0.00400153]
[1770487725794,0.5652507,2068.5,2067.4,0.00400153]
[1770487726388,0.5652507,2068.4,2067.0,0.58287392]
[1770487727296,0.5652507,2068.4,2067.0,0.58642691]
[1770487727998,0.5652507,2068.4,2067.0,0.00355299]
[1770487728196,0.5652507,2068.4,2067.0,0.58642691]
[1770487732496,0.5652507,2067.9,2066.1,4.2442695]
[1770487732700,0.5652507,2067.9,2066.2,0.58287392]
[1770487733601,0.5652507,2067.8,2066.3,0.58287392]
[1770487734200,0.5652507,2067.7,2066.3,0.58287392]
[1770487736908,0.5652507,2067.6,2066.2,0.58798918]
[1770487737210,0.56888861,2067.6,2066.2,0.00511526]
[1770487737403,0.56888861,2067.6,2066.2,0.58798918]
[1770487739200,0.56888861,2067.6,2066.2,0.00511526]
[1770487740108,0.56888861,2067.6,2065.9,0.52598918]
[1770487740905,0.56888861,2067.6,2065.9,0.53000471]
[1770487741914,0.56888861,2067.6,2066.0,0.58287392]
[1770487743209,0.56888861,2067.6,2066.2,0.58287392]
[1770487743415,0.00363791,2067.6,2066.2,0.58287392]
[1770487743715,0.5652507,2067.5,2066.2,0.58287392]
[1770487750128,0.5652507,2067.5,2066.3,0.57170142]
[1770487751422,0.5652507,2067.5,2066.4,0.5381407]
[1770487752015,0.00363791,2067.6,2066.5,0.5381407]
[1770487752215,0.00363791,2067.6,2066.5,4.7824102]
[1770487752420,0.00363791,2067.6,2066.6,4.7824102]
[1770487752717,0.577641,2068.1,2066.5,4.2442695]
[1770487752918,7.18108963,2068.3,2066.3,0.5381407]
[1770487752919,0.577641,2067.5,2066.3,0.5381407]
[1770487753823,0.58223191,2067.5,2066.3,0.5381407]
[1770487754823,0.58223191,2067.5,2066.4,0.5381407]
[1770487757121,0.577641,2067.4,2066.4,0.5381407]
[1770487758824,0.577641,2067.4,2066.4,4.6100734]
[1770487759025,0.577641,2067.4,2066.3,0.5381407]
[1770487760123,0.577641,2067.4,2066.1,4.2442695]
[1770487760322,0.577641,2067.4,2066.2,0.5381407]
[1770487760522,0.577641,2067.4,2066.3,0.5381407]
[1770487760718,0.577641,2067.4,2066.1,4.2442695]
[1770487760928,0.577641,2067.4,2066.2,0.5381407]
[1770487762419,0.577641,2067.3,2066.1,0.5381407]
[1770487763330,0.577641,2067.3,2066.2,0.5381407]
[1770487764226,0.577641,2067.3,2066.0,4.7824102]
[1770487764421,0.577641,2067.3,2066.1,5.15410117]
[1770487764622,0.577641,2067.3,2066.2,0.5381407]
[1770487766230,0.577641,2067.3,2066.0,0.5381407]
[1770487767528,0.577641,2067.3,2066.1,0.5381407]
[1770487769327,0.00459091,2067.5,2066.2,0.5381407]
[1770487769532,0.58223191,2067.5,2066.5,0.5381407]
[1770487769836,0.58223191,2067.5,2066.6,0.5381407]
[1770487770334,0.577641,2067.4,2066.0,0.5381407]
[1770487770536,0.577641,2067.4,2066.1,0.5381407]
[1770487771336,0.577641,2067.3,2066.1,0.5381407]
[1770487771534,0.577641,2066.8,2065.9,0.00401553]
[1770487771739,7.75873063,2066.8,2065.9,0.00401553]
[1770487772038,0.577641,2066.7,2065.9,0.00401553]
[1770487772337,0.577641,2066.8,2065.9,0.54215623]
[1770487772534,0.577641,2067.0,2065.9,0.54215623]
[1770487773644,7.75873063,2067.0,2065.9,0.00401553]
[1770487773842,0.577641,2066.9,2065.9,0.00401553]
[1770487774246,0.577641,2066.9,2065.9,0.54215623]
[1770487778448,0.577641,2066.9,2065.9,0.00401553]
[1770487778655,0.57310184,2066.6,2065.1,0.53252736]
[1770487778852,0.57310184,2066.4,2065.2,0.53252736]
[1770487779147,0.57310184,2066.2,2065.2,0.53252736]
[1770487779355,0.57310184,2066.2,2065.1,0.53252736]
[1770487779753,0.57310184,2066.2,2065.1,0.53625276]
[1770487779953,0.57310184,2066.2,2065.1,0.0037254]
[1770487780551,0.57310184,2066.2,2065.1,0.53625276]
[1770487781453,0.57310184,2066.2,2065.1,0.0037254]
[1770487781648,0.57310184,2066.1,2065.1,0.0037254]
[1770487782047,0.57310184,2066.1,2065.1,0.53625276]
[1770487782454,0.57310184,2066.1,2065.1,0.0037254]
[1770487784358,0.24215,2066.4,2065.1,0.53625276]
[1770487784558,0.57310184,2066.3,2065.1,0.53625276]
[1770487785752,5.41210184,2066.3,2065.1,0.0037254]
[1770487785959,0.57310184,2066.2,2065.1,0.0037254]
[1770487786259,0.57310184,2066.2,2065.1,0.53625276]
[1770487787354,0.57310184,2066.1,2065.1,0.53625276]
[1770487788466,0.57310184,2066.1,2065.1,0.0037254]
[1770487788961,0.57310184,2066.0,2065.1,0.0037254]
[1770487789261,0.57657262,2066.0,2065.1,0.53625276]
[1770487789468,0.57657262,2066.0,2064.9,0.53252736]
[1770487790575,0.57657262,2066.0,2064.9,0.53865756]
[1770487791167,5.41557262,2066.0,2064.9,0.53865756]
[1770487791368,0.57310184,2065.8,2064.6,0.60348777]
[1770487791569,0.57310184,2065.8,2064.7,0.19293067]
[1770487791768,0.57310184,2065.7,2064.5,0.19293067]
[1770487792373,0.57310184,2065.7,2064.5,0.19704378]
[1770487792670,0.57310184,2065.6,2064.5,0.19704378]
[1770487799570,0.57310184,2065.8,2064.5,0.19704378]
[1770487800467,0.57657262,2066.0,2064.8,0.19291619]
[1770487801071,0.57657262,2066.0,2064.8,2.84640947]
[1770487801278,0.00347078,2066.0,2064.9,0.19291619]
[1770487801672,0.00347078,2066.0,2065.0,3.03932566]
[1770487801878,0.57310184,2066.2,2065.1,0.19291619]
[1770487802075,0.57310184,2066.7,2065.1,0.19291619]
[1770487802275,0.57310184,2067.1,2065.6,0.19291619]
[1770487802772,0.57710707,2067.1,2065.6,0.19291619]
[1770487803583,0.57710707,2067.1,2065.8,0.19184561]
[1770487803775,0.00400523,2067.1,2066.0,0.19184561]
[1770487803977,0.57310184,2067.7,2066.3,3.03825508]
[1770487804171,0.57310184,2067.7,2066.4,0.19184561]
[1770487804890,0.57757931,2067.7,2066.4,0.19184561]
[1770487806076,0.57757931,2067.7,2066.5,0.00337045]
[1770487806675,0.00447747,2067.7,2066.5,0.00337045]
[1770487807077,0.57534997,2068.1,2066.7,0.01704294]
[1770487807580,0.57534997,2068.1,2066.1,0.01704294]
[1770487807581,0.57534997,2068.0,2066.1,0.01704294]
[1770487808187,0.57973126,2068.0,2066.1,0.01704294]
[1770487810181,0.57973126,2068.0,2066.3,0.08191426]
[1770487810182,0.00438129,2068.0,2066.3,0.08191426]
[1770487810382,0.56983317,2068.0,2066.4,0.08191426]
[1770487813998,0.00438129,2068.0,2066.4,0.08191426]
[1770487814191,0.55808896,2067.9,2066.4,0.08191426]
[1770487816586,0.55808896,2067.9,2066.5,0.06038859]
[1770487817690,0.00438129,2068.0,2066.8,0.06038859]
[1770487817887,0.55894533,2068.0,2066.8,0.06038859]
[1770487818089,0.55894533,2068.0,2066.6,0.06038859]
[1770487824589,0.00438129,2068.0,2066.8,0.05958244]
[1770487824793,0.55934841,2068.0,2066.8,0.05958244]
[1770487825698,0.55934841,2068.0,2066.6,0.05958244]
[1770487829197,0.55934841,2068.0,2066.7,0.05743291]
[1770487830099,0.55934841,2068.0,2066.8,0.05743291]
[1770487832102,0.55934841,2068.0,2066.9,0.0557713]
[1770487832701,0.55934841,2068.0,2066.9,2.89669041]
[1770487832901,0.55934841,2068.0,2067.0,0.06147632]
[1770487833105,0.55934841,2068.0,2067.0,2.90239543]
[1770487833403,0.55934841,2068.0,2067.0,0.06147632]
[1770487834000,0.55934841,2068.0,2067.0,2.90239543]
[1770487834706,0.55934841,2068.0,2067.0,2.84091911]
[1770487836402,0.55934841,2068.0,2067.1,0.05482112]
[1770487837197,0.55934841,2068.0,2067.0,2.84091911]
[1770487837399,0.55934841,2068.0,2067.0,7.50121618]
[1770487837599,0.55934841,2068.0,2067.1,0.05482112]
[1770487838406,0.55934841,2068.0,2066.9,4.60589715]
[1770487839010,0.55934841,2068.0,2066.8,0.53963853]
[1770487839204,0.55934841,2068.0,2066.9,0.53963853]
[1770487839405,0.55934841,2068.0,2066.6,4.2442695]
[1770487839406,0.53408783,2067.6,2066.6,4.2442695]
[1770487839605,0.53408783,2067.6,2066.5,0.53963853]
[1770487839807,0.53408783,2067.6,2066.6,5.11602501]
[1770487840009,0.53408783,2067.6,2066.6,5.51865898]
[1770487841216,0.53408783,2067.6,2066.6,0.9422725]
[1770487841513,0.53408783,2067.6,2066.6,0.53963853]
[1770487842613,0.53408783,2067.6,2066.5,0.53963853]
[1770487844611,0.53408783,2067.6,2066.6,0.53963853]
[1770487846220,0.53408783,2067.6,2066.1,6.19866453]
[1770487846412,0.53408783,2067.6,2066.3,0.53963853]
[1770487846611,0.53408783,2067.6,2066.4,0.53963853]
[1770487846815,0.53408783,2067.6,2066.5,0.53963853]
[1770487851621,0.53408783,2067.6,2066.4,0.53963853]
[1770487851814,0.53408783,2067.6,2066.3,0.53963853]
[1770487852014,0.53408783,2067.6,2066.4,0.53963853]
[1770487852913,0.53408783,2067.6,2066.0,10.21872477]
[1770487852914,0.52997958,2067.1,2066.0,4.55448405]
[1770487853119,0.52997958,2067.0,2066.0,0.53963853]
[1770487854022,0.52997958,2067.0,2066.0,0.54382882]
[1770487856423,0.52997958,2067.0,2066.0,0.00419029]
[1770487856721,0.52268889,2066.7,2065.7,0.53963853]
[1770487857419,0.52268889,2066.7,2065.2,0.53963853]
[1770487857612,0.52268889,2066.7,2065.3,0.53963853]
[1770487858015,0.53408783,2066.3,2065.2,0.00618736]
[1770487858215,0.53817429,2066.3,2065.2,0.00618736]
[1770487859119,0.53817429,2066.3,2065.2,0.54582589]
[1770487860518,0.53817429,2066.3,2065.2,0.00618736]
[1770487860718,0.53817429,2066.3,2065.2,0.54582589]
[1770487860919,0.53817429,2066.3,2065.2,0.00618736]
[1770487862018,0.53817429,2066.3,2065.2,0.54582589]
[1770487863325,0.53817429,2066.3,2065.2,0.00618736]
[1770487864624,0.53817429,2066.3,2065.3,0.53963853]
[1770487864625,0.00408646,2066.3,2065.3,0.53963853]
[1770487864814,0.53817429,2066.3,2065.3,0.53963853]
[1770487869225,0.00408646,2066.3,2065.3,0.53963853]
[1770487869626,0.55574934,2066.3,2065.3,0.53963853]
[1770487870126,0.55574934,2066.3,2065.2,0.5884145]
[1770487872722,0.55574934,2066.3,2065.2,0.55363808]
[1770487876335,0.55574934,2066.3,2065.2,0.00618736]
[1770487876726,0.55574934,2066.3,2065.2,0.55363808]
[1770487877235,0.55574934,2066.3,2065.2,0.00618736]
[1770487878029,0.55574934,2066.3,2065.2,0.55363808]
[1770487880134,0.55574934,2066.3,2065.2,0.00618736]
[1770487881332,0.55574934,2066.3,2065.2,0.55363808]
[1770487885638,0.55695767,2066.3,2065.3,0.54745072]
[1770487885935,0.00408646,2066.3,2065.3,0.54745072]
[1770487887137,0.00408646,2066.3,2065.3,15.04918398]
[1770487887337,0.00408646,2066.3,2065.5,0.54745072]
[1770487887540,0.00408646,2066.3,2065.6,0.54745072]
[1770487888135,0.55695767,2066.3,2065.6,0.54745072]
[1770487888933,0.00408646,2066.3,2065.6,0.54745072]
[1770487889139,0.55287121,2066.8,2065.6,0.54745072]
[1770487890135,0.55749256,2066.8,2065.6,0.54745072]
[1770487892146,0.55749256,2066.8,2065.7,0.54745072]
[1770487901549,0.55749256,2066.8,2065.9,0.57958816]
[1770487905757,0.55749256,2066.8,2065.5,0.57958816]
[1770487907261,0.55749256,2066.8,2065.6,0.57958816]
[1770487910057,0.55749256,2066.8,2065.7,0.57958816]
[1770487914064,0.55174727,2066.7,2065.7,0.57958816]
[1770487916570,0.55174727,2066.7,2065.8,0.57958816]
[1770487920469,0.55174727,2066.4,2065.6,2.86445732]
[1770487920668,8.73215308,2066.8,2065.8,0.57958816]
[1770487920870,7.73745825,2066.8,2065.8,0.57958816]
[1770487921070,5.80617836,2066.6,2065.8,0.57958816]
[1770487921375,0.55174727,2066.5,2065.8,0.57958816]
[1770487921574,0.00462135,2066.8,2066.1,3.44404548]
[1770487921767,0.55174727,2067.3,2066.4,0.57958816]
[1770487922776,0.55655464,2067.3,2066.4,0.57958816]
[1770487923776,0.55174727,2067.5,2066.5,0.57958816]
[1770487924982,0.55174727,2067.3,2066.3,3.44404548]
[1770487925182,0.55174727,2067.3,2066.3,0.57958816]
[1770487926585,0.53881784,2067.0,2066.3,0.57958816]
[1770487927582,0.53881784,2067.4,2066.3,0.57958816]
[1770487927783,0.54417917,2067.5,2066.4,0.5720111]
[1770487928981,0.53881784,2067.4,2066.5,0.5720111]
[1770487929182,0.53881784,2067.4,2066.6,0.5720111]
[1770487929778,0.54417917,2067.5,2066.6,0.5720111]
[1770487929982,0.00536133,2067.5,2066.6,0.5720111]
[1770487930184,0.54417917,2067.5,2066.6,0.5720111]
[1770487932083,0.54584436,2067.4,2066.6,2.86445732]
[1770487932281,0.54584436,2067.4,2066.4,0.57210817]
[1770487942191,0.00536133,2067.5,2066.4,0.57210817]
[1770487942387,0.55120569,2067.5,2066.5,0.57210817]
[1770487944489,0.00536133,2067.5,2066.6,0.57210817]
[1770487944883,0.55120569,2067.5,2066.6,0.57210817]
[1770487945288,0.00536133,2067.5,2066.6,0.57210817]
[1770487945684,0.00536133,2067.5,2066.5,7.13972159]
[1770487945685,0.55120569,2067.5,2066.7,0.57210817]
[1770487945893,0.55120569,2067.5,2066.7,0.57558393]
[1770487947390,0.55120569,2067.5,2066.7,0.00347576]
[1770487947592,0.55120569,2067.5,2066.7,0.57558393]
[1770487948194,0.00536133,2067.5,2066.7,0.57558393]
[1770487949199,0.00536133,2067.5,2066.8,0.57210817]
[1770487950200,0.00536133,2067.5,2066.9,0.57210817]
[1770487950390,0.55120569,2067.5,2066.9,0.57210817]
[1770487950792,0.00536133,2067.5,2066.9,0.57210817]
[1770487950997,0.55120569,2067.5,2066.9,0.57210817]
[1770487951399,0.00536133,2067.5,2066.9,0.57210817]
[1770487951790,0.54584436,2067.9,2067.0,0.57210817]
[1770487951992,0.54584436,2067.9,2067.1,0.57210817]
[1770487952200,0.54584436,2068.1,2067.1,0.57210817]
[1770487952400,0.99344061,2067.8,2067.0,3.43656549]
[1770487952599,0.21375263,2067.0,2066.7,0.00347576]
[1770487952904,0.21780896,2067.0,2066.7,0.57558393]
[1770487953201,0.00405633,2067.0,2066.7,0.57558393]